[Event "NOR-ch Various 2019"]
[Site "Larvik"]
[Date "2019.07.10"]
[Round "6.36"]
[White "Kristiansen, Willy M"]
[Black "Thanke, Bror"]
[Result "1/2-1/2"]
[ECO "E69"]
[WhiteElo "2118"]
[BlackElo "2191"]
[Annotator "NA"]
[PlyCount "92"]
[EventDate "2019.07.06"]
[EventType "swiss"]
[EventCountry "NOR"]
[SourceTitle "playchess.com"]
[Source "ChessBase"]
[SourceQuality "1"]
[TimeControl "40/5400+30:1800+30"]

1. d4 {[%emt 0:00:00]} Nf6 {[%emt 0:01:57]} 2. c4 {[%emt 0:00:00]} d6 {[%emt 0:00:14]} 3. Nf3 {[%emt 0:00:07]} g6 {[%emt 0:00:15]} 4. g3 {[%emt 0:00:15]} Bg7 {[%emt 0:00:27]} 5. Bg2 {[%emt 0:00:13]} O-O {[%emt 0:00:16]} 6. O-O {[%emt 0:00:07]} Nbd7 {[%emt 0:00:44]} 7. Nc3 {[%emt 0:00:13]} e5 {[%emt 0:00:51]} 8. e4 {[%emt 0:00:18]} a6 {[%emt 0:05:11]} 9. Re1 {[%emt 0:01:54]} c6 {[%emt 0:12:45]} 10. h3 {[%emt 0:04:24]} b5 {[%emt 0:06:21]} 11. cxb5 {[%emt 0:12:41]} cxb5 {[%emt 0:09:14]} 12. Bg5 {[%emt 0:14:18]} h6 {[%emt 0:04:38]} 13. Be3 {[%emt 0:02:27]} Bb7 {[%emt 0:03:14]} 14. Nd2 {[%emt 0:02:00]} Re8 {[%emt 0:15:51]} 15. d5 {[%emt 0:07:44]} Rc8 {[%emt 0:01:51]} 16. a3 {[%emt 0:10:43]} Nc5 {[%emt 0:05:15]} 17. Bf1 {[%emt 0:01:52]} Nh7 {[%emt 0:08:16]} 18. f3 {[%emt 0:10:26]} f5 {[%emt 0:01:28]} 19. Bf2 {[%emt 0:00:18]} Rf8 {[%emt 0:00:35]} 20. Rc1 {[%emt 0:01:01]} fxe4 {[%emt 0:02:45]} 21. fxe4 {[%emt 0:08:01]} Qf6 {[%emt 0:01:10]} 22. Be3 {[%emt 0:00:58]} Rf7 {[%emt 0:01:32]} 23. b4 {[%emt 0:00:30]} Nd7 {[%emt 0:00:59]} 24. Bg2 {[%emt 0:01:10]} Qe7 {[%emt 0:01:14]} 25. Nb3 {[%emt 0:01:32]} Rcf8 {[%emt 0:01:32]} 26. Qe2 {[%emt 0:01:53]} Ndf6 {[%emt 0:03:57]} 27. Rf1 {[%emt 0:03:34]} Nh5 {[%emt 0:00:31]} 28. Rxf7 {[%emt 0:01:26]} Qxf7 {[%emt 0:01:04]} 29. Kh2 {[%emt 0:02:05]} Nf4 {[%emt 0:04:13]} 30. gxf4 {[%emt 0:05:47]} exf4 {[%emt 0:00:05]} 31. Bd4 {[%emt 0:00:25]} f3 {[%emt 0:00:42]} 32. Qxf3 {[%emt 0:03:47]} Qxf3 {[%emt 0:00:15]} 33. Bxf3 {[%emt 0:00:06]} Rxf3 {[%emt 0:00:07]} 34. Bxg7 {[%emt 0:01:06]} Kxg7 {[%emt 0:00:06]} 35. Nd4 {[%emt 0:00:48]} Rf7 {[%emt 0:03:31]} 36. Ne6+ {[%emt 0:01:29]} Kg8 {[%emt 0:00:11]} 37. Rg1 {[%emt 0:01:27]} g5 {[%emt 0:01:03]} 38. e5 {[%emt 0:00:52]} dxe5 {[%emt 0:00:59]} 39. Nc5 {[%emt 0:00:33]} Nf6 {[%emt 0:01:56]} 40. Rd1 {[%emt 0:00:52]} Bc8 {[%emt 0:01:43]} 41. Re1 {[%emt 0:01:55]} g4 {[%emt 0:04:57]} 42. hxg4 {[%emt 0:03:58]} Nxg4+ {[%emt 0:00:23]} 43. Kg3 {[%emt 0:00:48]} Rg7 {[%emt 0:07:50]} 44. Kf3 {[%emt 0:04:51]} Rf7+ {[%emt 0:05:09]} 45. Kg3 {[%emt 0:00:20]} Rg7 {[%emt 0:01:31]} 46. Kf3 {[%emt 0:00:36]} Rf7+ {[%emt 0:02:32]} 1/2-1/2

[Event "NOR-ch Various 2019"]
[Site "Larvik"]
[Date "2019.07.10"]
[Round "6.37"]
[White "Huse, Sigurd Kjelsbol"]
[Black "Sorgjerd, Jan"]
[Result "1/2-1/2"]
[ECO "B51"]
[WhiteElo "2122"]
[BlackElo "2033"]
[Annotator "NA"]
[PlyCount "139"]
[EventDate "2019.07.06"]
[EventType "swiss"]
[EventCountry "NOR"]
[SourceTitle "playchess.com"]
[Source "ChessBase"]
[SourceQuality "1"]
[TimeControl "40/5400+30:1800+30"]

1. e4 {[%emt 0:00:00]} c5 {[%emt 0:00:00]} 2. Nf3 {[%emt 0:00:00]} d6 {[%emt 0:00:00]} 3. Bb5+ {[%emt 0:00:00]} Nc6 {[%emt 0:01:05]} 4. O-O {[%emt 0:00:00]} a6 {[%emt 0:03:21]} 5. Bxc6+ {[%emt 0:01:07]} bxc6 {[%emt 0:00:08]} 6. d3 {[%emt 0:00:14]} g6 {[%emt 0:00:29]} 7. h3 {[%emt 0:02:34]} Bg7 {[%emt 0:00:09]} 8. Nc3 {[%emt 0:01:15]} Rb8 {[%emt 0:01:20]} 9. Re1 {[%emt 0:02:48]} e5 {[%emt 0:05:51]} 10. Rb1 {[%emt 0:02:58]} Nf6 {[%emt 0:06:42]} 11. Bg5 {[%emt 0:02:03]} h6 {[%emt 0:01:58]} 12. Be3 {[%emt 0:02:26]} O-O {[%emt 0:00:18]} 13. Qc1 {[%emt 0:11:12]} Kh7 {[%emt 0:01:36]} 14. Nh2 {[%emt 0:01:57]} Nh5 {[%emt 0:03:18]} 15. Rf1 {[%emt 0:09:31]} f5 {[%emt 0:07:27]} 16. f4 {[%emt 0:01:43]} exf4 {[%emt 0:05:53]} 17. Bxf4 {[%emt 0:01:23]} g5 {[%emt 0:00:47]} 18. Be3 {[%emt 0:01:58]} Ng3 {[%emt 0:01:01]} 19. Re1 {[%emt 0:02:03]} Qa5 {[%emt 0:17:14]} 20. exf5 {[%emt 0:07:09]} Nxf5 {[%emt 0:06:28]} 21. Bf2 {[%emt 0:01:23]} d5 {[%emt 0:04:51]} 22. Nf3 {[%emt 0:02:34]} Rb7 {[%emt 0:02:38]} 23. Ne5 {[%emt 0:02:50]} Re7 {[%emt 0:02:22]} 24. Nf3 {[%emt 0:10:44]} Rfe8 {[%emt 0:01:57]} 25. Qd2 {[%emt 0:01:01]} Nd4 {[%emt 0:02:24]} 26. Nxd4 {[%emt 0:07:38]} cxd4 {[%emt 0:00:50]} 27. Ne4 {[%emt 0:00:41]} Qc7 {[%emt 0:07:09]} 28. Ng3 {[%emt 0:00:19]} Be5 {[%emt 0:00:34]} 29. Ne2 {[%emt 0:02:34]} Bf4 {[%emt 0:08:18]} 30. Nxf4 {[%emt 0:00:46]} Qxf4 {[%emt 0:00:07]} 31. Rxe7+ {[%emt 0:01:14]} Rxe7 {[%emt 0:00:11]} 32. Qxf4 {[%emt 0:00:08]} gxf4 {[%emt 0:00:09]} 33. Re1 {[%emt 0:03:04]} Rxe1+ {[%emt 0:02:17]} 34. Bxe1 {[%emt 0:00:01]} f3 {[%emt 0:02:49]} 35. gxf3 {[%emt 0:00:31]} Bxh3 {[%emt 0:00:12]} 36. Ba5 {[%emt 0:00:08]} c5 {[%emt 0:03:09]} 37. b3 {[%emt 0:02:20]} Be6 {[%emt 0:01:54]} 38. Bb6 {[%emt 0:00:45]} c4 {[%emt 0:00:12]} 39. dxc4 {[%emt 0:00:15]} dxc4 {[%emt 0:01:03]} 40. Bxd4 {[%emt 0:00:07]} Bf5 {[%emt 0:00:47]} 41. bxc4 {[%emt 0:32:28]} Bxc2 {[%emt 0:01:16]} 42. c5 {[%emt 0:00:00]} Ba4 {[%emt 0:00:08]} 43. Kf2 {[%emt 0:00:00]} Kg6 {[%emt 0:00:28]} 44. Be5 {[%emt 0:00:00]} Kf5 {[%emt 0:00:37]} 45. Bd6 {[%emt 0:00:00]} Bc6 {[%emt 0:00:53]} 46. Ke3 {[%emt 0:00:00]} h5 {[%emt 0:00:39]} 47. a3 {[%emt 0:00:00]} a5 {[%emt 0:00:12]} 48. Bg3 {[%emt 0:00:00]} a4 {[%emt 0:01:34]} 49. Bh4 {[%emt 0:00:00]} Ba8 {[%emt 0:04:13]} 50. f4 {[%emt 0:00:00]} Bb7 {[%emt 0:03:06]} 51. Bg3 {[%emt 0:00:00]} Bc6 {[%emt 0:01:35]} 52. Bh2 {[%emt 0:00:00]} h4 {[%emt 0:02:04]} 53. Kd4 {[%emt 0:00:00]} Ke6 {[%emt 0:00:22]} 54. Kc4 {[%emt 0:00:00]} Bd7 {[%emt 0:01:31]} 55. f5+ {[%emt 0:00:00]} Kxf5 {[%emt 0:00:47]} 56. Kd5 {[%emt 0:00:00]} Bc8 {[%emt 0:03:33]} 57. c6 {[%emt 0:00:00]} Ba6 {[%emt 0:00:41]} 58. Kc5 {[%emt 0:00:00]} Ke4 {[%emt 0:01:17]} 59. Kb4 {[%emt 0:00:00]} Kd5 {[%emt 0:00:52]} 60. c7 {[%emt 0:00:00]} Kc6 {[%emt 0:00:46]} 61. Ka5 {[%emt 0:00:00]} Bc8 {[%emt 0:00:12]} 62. Kxa4 {[%emt 0:00:00]} Kb7 {[%emt 0:00:10]} 63. Kb4 {[%emt 0:00:00]} h3 {[%emt 0:00:40]} 64. Kc5 {[%emt 0:00:00]} Bg4 {[%emt 0:00:22]} 65. Kd6 {[%emt 0:00:00]} Bf5 {[%emt 0:00:14]} 66. Ke7 {[%emt 0:00:45]} Bg4 {[%emt 0:00:16]} 67. Kd8 {[%emt 0:00:26]} Bf5 {[%emt 0:00:10]} 68. a4 {[%emt 0:00:04]} Bg4 {[%emt 0:00:03]} 69. a5 {[%emt 0:00:22]} Bf5 {[%emt 0:00:05]} 70. a6+ {[%emt 0:00:34]} 1/2-1/2

[Event "NOR-ch Various 2019"]
[Site "Larvik"]
[Date "2019.07.10"]
[Round "6.38"]
[White "Digernes, Magnus"]
[Black "Moen, Ole Christian"]
[Result "0-1"]
[ECO "E92"]
[WhiteElo "1997"]
[BlackElo "2234"]
[Annotator "NA"]
[PlyCount "94"]
[EventDate "2019.07.06"]
[EventType "swiss"]
[EventCountry "NOR"]
[SourceTitle "playchess.com"]
[Source "ChessBase"]
[SourceQuality "1"]
[TimeControl "40/5400+30:1800+30"]

1. d4 {[%emt 0:00:00]} Nf6 {[%emt 0:00:00]} 2. c4 {[%emt 0:00:00]} g6 {[%emt 0:00:00]} 3. Nc3 {[%emt 0:00:11]} Bg7 {[%emt 0:00:08]} 4. e4 {[%emt 0:00:10]} d6 {[%emt 0:00:05]} 5. Nf3 {[%emt 0:00:20]} O-O {[%emt 0:00:08]} 6. Be2 {[%emt 0:00:09]} e5 {[%emt 0:00:25]} 7. Be3 {[%emt 0:00:34]} Nc6 {[%emt 0:00:35]} 8. d5 {[%emt 0:04:54]} Ne7 {[%emt 0:00:35]} 9. Nd2 {[%emt 0:08:53]} Kh8 {[%emt 0:00:51]} 10. h3 {[%emt 0:01:03]} Neg8 {[%emt 0:00:24]} 11. Qc2 {[%emt 0:01:23]} Bh6 {[%emt 0:00:19]} 12. Nf1 {[%emt 0:01:47]} Nd7 {[%emt 0:02:09]} 13. g4 {[%emt 0:00:53]} a5 {[%emt 0:04:06]} 14. h4 {[%emt 0:04:00]} Bxe3 {[%emt 0:01:47]} 15. Nxe3 {[%emt 0:00:07]} h6 {[%emt 0:01:10]} 16. g5 {[%emt 0:03:37]} Nc5 {[%emt 0:04:51]} 17. O-O-O {[%emt 0:09:49]} h5 {[%emt 0:04:19]} 18. Rdg1 {[%emt 0:04:30]} Ne7 {[%emt 0:03:40]} 19. Bxh5 {[%emt 0:04:03]} gxh5 {[%emt 0:00:11]} 20. Qe2 {[%emt 0:00:23]} Kg7 {[%emt 0:01:02]} 21. Qxh5 {[%emt 0:01:42]} Rh8 {[%emt 0:00:26]} 22. Qf3 {[%emt 0:01:29]} Ng6 {[%emt 0:01:26]} 23. h5 {[%emt 0:02:45]} Nf4 {[%emt 0:00:12]} 24. Nf5+ {[%emt 0:05:52]} Kg8 {[%emt 0:12:40]} 25. Nh6+ {[%emt 0:12:44]} Kf8 {[%emt 0:04:10]} 26. Kb1 {[%emt 0:12:03]} Ke7 {[%emt 0:12:51]} 27. Ne2 {[%emt 0:02:50]} Ncd3 {[%emt 0:05:06]} 28. Ng3 {[%emt 0:01:25]} Rxh6 {[%emt 0:00:10]} 29. gxh6 {[%emt 0:00:23]} Qh8 {[%emt 0:00:08]} 30. Nf5+ {[%emt 0:00:44]} Bxf5 {[%emt 0:00:20]} 31. exf5 {[%emt 0:00:08]} Qxh6 {[%emt 0:00:37]} 32. Rg6 {[%emt 0:02:28]} Qh7 {[%emt 0:03:41]} 33. f6+ {[%emt 0:03:01]} Kf8 {[%emt 0:00:54]} 34. Rg7 {[%emt 0:04:16]} Qf5 {[%emt 0:01:33]} 35. Ka1 {[%emt 0:05:47]} Qxf6 {[%emt 0:01:23]} 36. Rhg1 {[%emt 0:02:49]} Ke7 {[%emt 0:01:25]} 37. h6 {[%emt 0:00:43]} Qxh6 {[%emt 0:01:25]} 38. Qg4 {[%emt 0:00:30]} Rf8 {[%emt 0:00:29]} 39. f3 {[%emt 0:00:21]} Qf6 {[%emt 0:00:10]} 40. Qg5 {[%emt 0:00:39]} Qxg5 {[%emt 0:00:35]} 41. R1xg5 {[%emt 0:00:10]} Rh8 {[%emt 0:01:58]} 42. Rg1 {[%emt 0:02:45]} Rh2 {[%emt 0:00:25]} 43. b3 {[%emt 0:01:01]} Nb4 {[%emt 0:02:59]} 44. a4 {[%emt 0:01:55]} Ra2+ {[%emt 0:01:48]} 45. Kb1 {[%emt 0:00:09]} Ne2 {[%emt 0:00:05]} 46. R1g2 {[%emt 0:00:56]} Nc3+ {[%emt 0:00:09]} 47. Kc1 {[%emt 0:00:06]} Nd3# {[%emt 0:00:35]} 0-1

[Event "NOR-ch Various 2019"]
[Site "Larvik"]
[Date "2019.07.10"]
[Round "6.39"]
[White "Esbensen, Arnt"]
[Black "Gulbrandsen, Tor"]
[Result "1-0"]
[ECO "E09"]
[WhiteElo "2153"]
[BlackElo "2120"]
[Annotator "NA"]
[PlyCount "71"]
[EventDate "2019.07.06"]
[EventType "swiss"]
[EventCountry "NOR"]
[SourceTitle "playchess.com"]
[Source "ChessBase"]
[SourceQuality "1"]
[TimeControl "40/5400+30:1800+30"]

1. Nf3 {[%emt 0:01:20]} Nf6 {[%emt 0:04:19]} 2. d4 {[%emt 0:01:12]} d5 {[%emt 0:00:15]} 3. c4 {[%emt 0:00:12]} e6 {[%emt 0:00:39]} 4. g3 {[%emt 0:00:13]} Be7 {[%emt 0:00:46]} 5. Bg2 {[%emt 0:00:07]} O-O {[%emt 0:00:21]} 6. O-O {[%emt 0:00:07]} Nbd7 {[%emt 0:00:51]} 7. Nbd2 {[%emt 0:14:42]} c6 {[%emt 0:01:45]} 8. Qc2 {[%emt 0:00:45]} b6 {[%emt 0:03:00]} 9. e4 {[%emt 0:00:16]} dxe4 {[%emt 0:02:33]} 10. Nxe4 {[%emt 0:00:06]} Bb7 {[%emt 0:02:28]} 11. Rd1 {[%emt 0:02:10]} Nxe4 {[%emt 0:05:17]} 12. Qxe4 {[%emt 0:00:06]} Qc8 {[%emt 0:11:47]} 13. Bg5 {[%emt 0:20:43]} Bxg5 {[%emt 0:04:35]} 14. Nxg5 {[%emt 0:00:07]} Nf6 {[%emt 0:00:49]} 15. Qh4 {[%emt 0:05:19]} Rd8 {[%emt 0:04:50]} 16. c5 {[%emt 0:04:46]} Rd7 {[%emt 0:04:13]} 17. Nf3 {[%emt 0:02:58]} Rd8 {[%emt 0:10:33]} 18. Rac1 {[%emt 0:07:23]} Qc7 {[%emt 0:04:39]} 19. b4 {[%emt 0:04:58]} Nd5 {[%emt 0:01:43]} 20. a3 {[%emt 0:09:58]} h6 {[%emt 0:04:27]} 21. Ne5 {[%emt 0:00:49]} b5 {[%emt 0:04:42]} 22. Re1 {[%emt 0:07:09]} a5 {[%emt 0:03:41]} 23. Nd3 {[%emt 0:03:41]} axb4 {[%emt 0:01:31]} 24. axb4 {[%emt 0:01:43]} Ra3 {[%emt 0:03:43]} 25. Rcd1 {[%emt 0:03:26]} Rda8 {[%emt 0:04:56]} 26. Bxd5 {[%emt 0:00:54]} cxd5 {[%emt 0:01:27]} 27. Ne5 {[%emt 0:01:35]} Bc8 {[%emt 0:02:19]} 28. Rb1 {[%emt 0:00:20]} Kh7 {[%emt 0:02:53]} 29. Qh5 {[%emt 0:00:54]} R8a7 {[%emt 0:02:11]} 30. Re3 {[%emt 0:00:17]} Rxe3 {[%emt 0:02:01]} 31. fxe3 {[%emt 0:00:06]} f6 {[%emt 0:03:19]} 32. Qg6+ {[%emt 0:02:08]} Kh8 {[%emt 0:00:58]} 33. Qe8+ {[%emt 0:01:25]} Kh7 {[%emt 0:00:14]} 34. Ng6 {[%emt 0:00:51]} Bd7 {[%emt 0:02:32]} 35. Nf8+ {[%emt 0:00:51]} Kg8 {[%emt 0:00:15]} 36. Nxd7+ {[%emt 0:00:56]} 1-0

[Event "NOR-ch Various 2019"]
[Site "Larvik"]
[Date "2019.07.10"]
[Round "6.40"]
[White "Machlik, Monika"]
[Black "Skagseth, Havard M"]
[Result "1/2-1/2"]
[ECO "A01"]
[WhiteElo "2083"]
[BlackElo "2002"]
[Annotator "NA"]
[PlyCount "60"]
[EventDate "2019.07.06"]
[EventType "swiss"]
[EventCountry "NOR"]
[SourceTitle "playchess.com"]
[Source "ChessBase"]
[SourceQuality "1"]
[TimeControl "40/5400+30:1800+30"]

1. b3 {[%emt 0:00:00]} e5 {[%emt 0:00:00]} 2. Bb2 {[%emt 0:00:00]} Nc6 {[%emt 0:00:10]} 3. e3 {[%emt 0:00:07]} g6 {[%emt 0:00:39]} 4. c4 {[%emt 0:13:41]} Nge7 {[%emt 0:01:06]} 5. Nc3 {[%emt 0:02:01]} Bg7 {[%emt 0:00:25]} 6. d3 {[%emt 0:07:16]} d5 {[%emt 0:02:20]} 7. e4 {[%emt 0:12:38]} dxe4 {[%emt 0:09:42]} 8. dxe4 {[%emt 0:00:16]} Nd4 {[%emt 0:00:45]} 9. Nf3 {[%emt 0:03:37]} Bg4 {[%emt 0:04:17]} 10. Be2 {[%emt 0:00:58]} Bxf3 {[%emt 0:00:40]} 11. Bxf3 {[%emt 0:00:15]} O-O {[%emt 0:00:53]} 12. Nd5 {[%emt 0:08:34]} c6 {[%emt 0:02:54]} 13. Nxe7+ {[%emt 0:00:37]} Qxe7 {[%emt 0:00:07]} 14. O-O {[%emt 0:01:22]} Rad8 {[%emt 0:00:56]} 15. Bxd4 {[%emt 0:01:52]} Rxd4 {[%emt 0:13:07]} 16. Qc2 {[%emt 0:02:21]} Rfd8 {[%emt 0:02:54]} 17. Rad1 {[%emt 0:00:29]} Bh6 {[%emt 0:01:49]} 18. Rxd4 {[%emt 0:03:28]} Rxd4 {[%emt 0:01:28]} 19. Rd1 {[%emt 0:01:00]} Qd7 {[%emt 0:02:00]} 20. Rxd4 {[%emt 0:04:21]} Qxd4 {[%emt 0:00:44]} 21. g3 {[%emt 0:05:17]} Kf8 {[%emt 0:09:11]} 22. b4 {[%emt 0:15:04]} Bd2 {[%emt 0:06:11]} 23. b5 {[%emt 0:01:08]} Bb4 {[%emt 0:02:31]} 24. bxc6 {[%emt 0:01:04]} bxc6 {[%emt 0:00:06]} 25. Be2 {[%emt 0:03:53]} Qd2 {[%emt 0:04:03]} 26. Qxd2 {[%emt 0:00:54]} Bxd2 {[%emt 0:00:05]} 27. Bd1 {[%emt 0:02:07]} Ke7 {[%emt 0:00:09]} 28. Kf1 {[%emt 0:00:21]} Kd6 {[%emt 0:00:25]} 29. Ke2 {[%emt 0:00:16]} Bc3 {[%emt 0:00:57]} 30. Ba4 {[%emt 0:02:41]} Bd4 {[%emt 0:00:57]} 1/2-1/2

[Event "NOR-ch Various 2019"]
[Site "Larvik"]
[Date "2019.07.10"]
[Round "6.41"]
[White "Lobersli, Henrik Oie"]
[Black "Esbensen, Kai Inge"]
[Result "1-0"]
[ECO "C95"]
[WhiteElo "2046"]
[BlackElo "1991"]
[Annotator "NA"]
[PlyCount "119"]
[EventDate "2019.07.06"]
[EventType "swiss"]
[EventCountry "NOR"]
[SourceTitle "playchess.com"]
[Source "ChessBase"]
[SourceQuality "1"]
[TimeControl "40/5400+30:1800+30"]

1. e4 {[%emt 0:04:37]} e5 {[%emt 0:00:00]} 2. Nf3 {[%emt 0:00:15]} Nc6 {[%emt 0:00:00]} 3. Bb5 {[%emt 0:00:22]} a6 {[%emt 0:00:22]} 4. Ba4 {[%emt 0:00:15]} Nf6 {[%emt 0:00:14]} 5. O-O {[%emt 0:00:24]} Be7 {[%emt 0:00:15]} 6. Re1 {[%emt 0:00:27]} b5 {[%emt 0:00:14]} 7. Bb3 {[%emt 0:00:08]} d6 {[%emt 0:00:28]} 8. c3 {[%emt 0:00:33]} O-O {[%emt 0:00:15]} 9. h3 {[%emt 0:00:22]} Nb8 {[%emt 0:00:20]} 10. d4 {[%emt 0:01:10]} Nbd7 {[%emt 0:00:10]} 11. Nbd2 {[%emt 0:00:47]} Bb7 {[%emt 0:00:09]} 12. Bc2 {[%emt 0:00:45]} Re8 {[%emt 0:00:17]} 13. a4 {[%emt 0:01:02]} c5 {[%emt 0:02:49]} 14. d5 {[%emt 0:03:54]} c4 {[%emt 0:00:50]} 15. axb5 {[%emt 0:14:53]} axb5 {[%emt 0:00:12]} 16. Rxa8 {[%emt 0:00:17]} Qxa8 {[%emt 0:00:23]} 17. Nf1 {[%emt 0:10:16]} Bf8 {[%emt 0:09:17]} 18. Ng3 {[%emt 0:01:26]} g6 {[%emt 0:07:58]} 19. Nh2 {[%emt 0:03:23]} Bg7 {[%emt 0:27:59]} 20. f4 {[%emt 0:04:40]} exf4 {[%emt 0:00:51]} 21. Bxf4 {[%emt 0:00:17]} Ne5 {[%emt 0:00:59]} 22. Rf1 {[%emt 0:04:42]} Ba6 {[%emt 0:06:07]} 23. Bg5 {[%emt 0:03:28]} Nfd7 {[%emt 0:00:30]} 24. Ng4 {[%emt 0:00:40]} Nxg4 {[%emt 0:02:10]} 25. Qxg4 {[%emt 0:01:50]} Ne5 {[%emt 0:00:06]} 26. Qf4 {[%emt 0:04:25]} Qb7 {[%emt 0:06:30]} 27. Bf6 {[%emt 0:07:08]} Bxf6 {[%emt 0:15:13]} 28. Qxf6 {[%emt 0:00:11]} Qb6+ {[%emt 0:00:06]} 29. Kh2 {[%emt 0:00:15]} Qd8 {[%emt 0:00:13]} 30. Qxd8 {[%emt 0:05:19]} Rxd8 {[%emt 0:00:04]} 31. Ra1 {[%emt 0:00:24]} Bc8 {[%emt 0:02:20]} 32. Ra8 {[%emt 0:02:10]} Re8 {[%emt 0:04:27]} 33. Rb8 {[%emt 0:02:30]} Bd7 {[%emt 0:00:05]} 34. Rb6 {[%emt 0:08:20]} Ra8 {[%emt 0:00:06]} 35. Rxd6 {[%emt 0:00:30]} Ra2 {[%emt 0:00:33]} 36. Ne2 {[%emt 0:00:33]} Rxb2 {[%emt 0:02:54]} 37. Nd4 {[%emt 0:00:08]} Kf8 {[%emt 0:01:05]} 38. Ra6 {[%emt 0:05:50]} b4 {[%emt 0:04:45]} 39. cxb4 {[%emt 0:01:07]} Rxb4 {[%emt 0:00:04]} 40. Ra3 {[%emt 0:09:08]} Ke7 {[%emt 0:01:33]} 41. Kg3 {[%emt 0:05:10]} Rb6 {[%emt 0:22:53]} 42. Kf4 {[%emt 0:06:00]} Kd6 {[%emt 0:00:11]} 43. h4 {[%emt 0:02:43]} f6 {[%emt 0:05:26]} 44. Nf3 {[%emt 0:03:11]} Nxf3 {[%emt 0:01:27]} 45. gxf3 {[%emt 0:00:37]} Kc5 {[%emt 0:02:40]} 46. Ke3 {[%emt 0:00:46]} Kb4 {[%emt 0:00:34]} 47. Ra7 {[%emt 0:00:55]} Kc3 {[%emt 0:00:06]} 48. Rxd7 {[%emt 0:01:16]} Kxc2 {[%emt 0:00:05]} 49. Rc7 {[%emt 0:01:50]} Rb3+ {[%emt 0:02:34]} 50. Ke2 {[%emt 0:02:37]} c3 {[%emt 0:00:24]} 51. f4 {[%emt 0:02:10]} Kb1 {[%emt 0:02:54]} 52. d6 {[%emt 0:04:07]} c2 {[%emt 0:02:16]} 53. d7 {[%emt 0:00:14]} Rb2 {[%emt 0:00:12]} 54. Ke3 {[%emt 0:03:28]} Rb8 {[%emt 0:00:46]} 55. e5 {[%emt 0:01:05]} fxe5 {[%emt 0:00:34]} 56. fxe5 {[%emt 0:00:05]} c1=Q+ {[%emt 0:01:22]} 57. Rxc1+ {[%emt 0:00:09]} Kxc1 {[%emt 0:00:04]} 58. Kd4 {[%emt 0:01:16]} h6 {[%emt 0:01:02]} 59. e6 {[%emt 0:00:16]} Rd8 {[%emt 0:00:07]} 60. Ke5 {[%emt 0:00:26]} 1-0

[Event "NOR-ch Various 2019"]
[Site "Larvik"]
[Date "2019.07.11"]
[Round "7.2"]
[White "Stake-Larsen, Gunnar"]
[Black "Svenske, Jan"]
[Result "1-0"]
[ECO "D85"]
[WhiteElo "1976"]
[BlackElo "1757"]
[Annotator "NA"]
[PlyCount "85"]
[EventDate "2019.07.06"]
[EventType "swiss"]
[EventCountry "NOR"]
[SourceTitle "playchess.com"]
[Source "ChessBase"]
[SourceQuality "1"]
[TimeControl "40/5400+30:1800+30"]

1. d4 {[%emt 0:00:00]} Nf6 {[%emt 0:01:03]} 2. c4 {[%emt 0:02:02]} g6 {[%emt 0:01:28]} 3. Nc3 {[%emt 0:00:27]} d5 {[%emt 0:00:20]} 4. cxd5 {[%emt 0:01:42]} Nxd5 {[%emt 0:00:12]} 5. e4 {[%emt 0:00:18]} Nxc3 {[%emt 0:00:40]} 6. bxc3 {[%emt 0:00:04]} Bg7 {[%emt 0:00:12]} 7. Be3 {[%emt 0:00:54]} O-O {[%emt 0:02:29]} 8. Rc1 {[%emt 0:00:35]} b6 {[%emt 0:11:57]} 9. Nf3 {[%emt 0:03:45]} Bb7 {[%emt 0:08:52]} 10. e5 {[%emt 0:02:42]} Nc6 {[%emt 0:08:09]} 11. Be2 {[%emt 0:04:40]} e6 {[%emt 0:04:13]} 12. Qd2 {[%emt 0:01:26]} Qd7 {[%emt 0:05:37]} 13. Bh6 {[%emt 0:04:04]} Rad8 {[%emt 0:03:18]} 14. h4 {[%emt 0:09:47]} Ne7 {[%emt 0:09:05]} 15. h5 {[%emt 0:14:07]} Nf5 {[%emt 0:04:58]} 16. Bxg7 {[%emt 0:00:32]} Kxg7 {[%emt 0:01:06]} 17. hxg6 {[%emt 0:05:20]} fxg6 {[%emt 0:02:35]} 18. Rd1 {[%emt 0:22:42]} h5 {[%emt 0:04:36]} 19. Qg5 {[%emt 0:02:37]} Qe7 {[%emt 0:01:09]} 20. Rxh5 {[%emt 0:01:12]} Rh8 {[%emt 0:02:35]} 21. Rxh8 {[%emt 0:00:41]} Rxh8 {[%emt 0:00:07]} 22. Qxe7+ {[%emt 0:00:44]} Nxe7 {[%emt 0:00:08]} 23. Ng5 {[%emt 0:01:11]} Nd5 {[%emt 0:06:58]} 24. Nxe6+ {[%emt 0:01:42]} Kf7 {[%emt 0:00:17]} 25. Ng5+ {[%emt 0:00:36]} Ke7 {[%emt 0:03:23]} 26. Kd2 {[%emt 0:03:10]} Nf4 {[%emt 0:02:41]} 27. g3 {[%emt 0:02:07]} Nxe2 {[%emt 0:01:36]} 28. Kxe2 {[%emt 0:00:03]} Rh5 {[%emt 0:01:18]} 29. Nf3 {[%emt 0:00:31]} Bd5 {[%emt 0:03:28]} 30. Ke3 {[%emt 0:01:52]} a5 {[%emt 0:01:20]} 31. a3 {[%emt 0:00:24]} Ke6 {[%emt 0:01:02]} 32. Nd2 {[%emt 0:01:54]} b5 {[%emt 0:00:15]} 33. Rb1 {[%emt 0:04:04]} c6 {[%emt 0:00:43]} 34. a4 {[%emt 0:01:27]} bxa4 {[%emt 0:01:15]} 35. c4 {[%emt 0:00:44]} Bg2 {[%emt 0:00:15]} 36. Ra1 {[%emt 0:02:20]} Rh7 {[%emt 0:03:28]} 37. Rxa4 {[%emt 0:00:18]} Ra7 {[%emt 0:00:47]} 38. Nb3 {[%emt 0:00:15]} c5 {[%emt 0:02:55]} 39. Nxc5+ {[%emt 0:00:26]} Kf5 {[%emt 0:00:09]} 40. e6 {[%emt 0:00:44]} Bc6 {[%emt 0:00:23]} 41. Ra3 {[%emt 0:30:34]} Kf6 {[%emt 0:30:22]} 42. d5 {[%emt 0:00:18]} Be8 {[%emt 0:00:40]} 43. d6 {[%emt 0:00:13]} 1-0

[Event "NOR-ch Various 2019"]
[Site "Larvik"]
[Date "2019.07.11"]
[Round "7.3"]
[White "Kyrkjebo, Eirik"]
[Black "Wessel-Berg, Dag"]
[Result "1-0"]
[ECO "B31"]
[WhiteElo "1598"]
[BlackElo "1486"]
[Annotator "NA"]
[PlyCount "65"]
[EventDate "2019.07.06"]
[EventType "swiss"]
[EventCountry "NOR"]
[SourceTitle "playchess.com"]
[Source "ChessBase"]
[SourceQuality "1"]
[TimeControl "40/5400+30:1800+30"]

1. e4 {[%emt 0:00:00]} c5 {[%emt 0:00:00]} 2. Nf3 {[%emt 0:00:00]} Nc6 {[%emt 0:00:03]} 3. Bb5 {[%emt 0:00:08]} g6 {[%emt 0:00:46]} 4. d3 {[%emt 0:00:20]} Bg7 {[%emt 0:00:50]} 5. O-O {[%emt 0:00:53]} a6 {[%emt 0:00:39]} 6. Bxc6 {[%emt 0:00:12]} bxc6 {[%emt 0:01:56]} 7. Nc3 {[%emt 0:02:18]} d5 {[%emt 0:00:26]} 8. e5 {[%emt 0:01:11]} Nh6 {[%emt 0:01:59]} 9. b3 {[%emt 0:03:47]} Ng4 {[%emt 0:01:10]} 10. Re1 {[%emt 0:01:28]} Qc7 {[%emt 0:01:40]} 11. Bf4 {[%emt 0:02:00]} Qa5 {[%emt 0:00:45]} 12. Na4 {[%emt 0:03:53]} c4 {[%emt 0:03:09]} 13. Bd2 {[%emt 0:05:41]} Qc7 {[%emt 0:02:27]} 14. Bf4 {[%emt 0:07:16]} Qa5 {[%emt 0:00:55]} 15. dxc4 {[%emt 0:06:06]} dxc4 {[%emt 0:01:02]} 16. Qd4 {[%emt 0:04:30]} Be6 {[%emt 0:02:45]} 17. Rad1 {[%emt 0:04:13]} O-O {[%emt 0:02:09]} 18. Bd2 {[%emt 0:05:22]} Qc7 {[%emt 0:01:40]} 19. Nc5 {[%emt 0:02:04]} Nh6 {[%emt 0:01:28]} 20. Nxe6 {[%emt 0:00:41]} fxe6 {[%emt 0:00:22]} 21. Qxc4 {[%emt 0:00:38]} Qc8 {[%emt 0:03:13]} 22. Ng5 {[%emt 0:02:15]} Rf5 {[%emt 0:01:05]} 23. Nxe6 {[%emt 0:01:42]} Nf7 {[%emt 0:00:49]} 24. Bc3 {[%emt 0:06:43]} Kh8 {[%emt 0:02:37]} 25. Nxg7 {[%emt 0:00:34]} Kxg7 {[%emt 0:03:44]} 26. e6+ {[%emt 0:00:19]} Kf8 {[%emt 0:00:47]} 27. exf7 {[%emt 0:00:37]} Rxf7 {[%emt 0:00:28]} 28. Qd4 {[%emt 0:01:36]} Rf6 {[%emt 0:00:58]} 29. Rxe7 {[%emt 0:05:20]} Rf7 {[%emt 0:02:55]} 30. Rxf7+ {[%emt 0:01:16]} Kxf7 {[%emt 0:00:09]} 31. Qg7+ {[%emt 0:02:15]} Ke8 {[%emt 0:01:09]} 32. Re1+ Kd8 33. Qe7# 1-0